{"text_format":"3","workbook":"xlsx","n_sheets":3,"sheets":["Lot 1 - SJH","Lot 2 - LWE","Lot 3 - SSE"],"not_rendered":{"images":1,"defined_names":3},"read":"whole","date_system":"1900"}

{"sheet":"Lot 1 - SJH","index":0,"n_rows":35,"n_cols":8,"rows_kept":35,"merged":[[5,5,5,7],[33,0,33,4],[34,0,34,4]]}
[null,null,"Horry County Schools"]
[null,null,"Attachment A: Solicitation 2324-16VS"]
[null,null,"Name of Offeror as identified on the cover page:"]
[]
[null,null,"(Full legal name of business submitting the offer)"]
[{"$nulls":5},"QUESTION:    Optional Response, see page 5 of this solicitation."]
["Item#","Qty","Description","Unit Price","Extended Price","Are you requesting the SC Resident Vendor preference? Y/N","Are you requesting the SC End Product preference? Y/N","Are you requesting the US End Product preference? Y/N"]
[1,1,"2' x 8' Main Entrance sign with 1/2 white PVC letters and handling - Mid Blue w/ white letters",null,{"$f":"+B8*D8","v":{"v":0,"d":"$0.00"}}]
[2,4,"2' x 3' Notice No Trespassing, on U-channel and handling",null,{"$f":"+B9*D9","v":{"v":0,"d":"$0.00"}}]
[3,4,"30\" x 30\" Stop sign, mounts on U-channel and handling",null,{"v":0,"d":"$0.00"}]
[4,2,"24\" x 24\" Do Not Enter, mounts on U-channel and handling",null,{"v":0,"d":"$0.00"}]
[5,1,"24\" x 24\" Deliveries w/up arrow                                         < --- Bus Parking                                                                                     <--- Faculty/Staff Parking                        Mounts on U-channel and handling",null,{"v":0,"d":"$0.00"}]
[6,4,"18\" x 24\" Tobacco Free signs, mounts on U-channel and handling",null,{"v":0,"d":"$0.00"}]
[7,1,"18\" x 18\" Main Entrance sign, mounts on brick and Handling­- Mid Blue mount to column",null,{"v":0,"d":"$0.00"}]
[8,4,"18\" x 18\" Visitor Check-In sign, mounts on brick and handling",null,{"v":0,"d":"$0.00"}]
[9,1,"12\" x 18\" Bus and Faculty  Parking Only---->  on U-channel and handling",null,{"v":0,"d":"$0.00"}]
[10,1,"12\" x 18\" Bus and Faculty Entrance mounts on U-Channel and Handling",null,{"v":0,"d":"$0.00"}]
[11,1,"12\" x 18\" Faculty  Staff  and Visitor        Parking  <-----, on U-channel and handling",null,{"v":0,"d":"$0.00"}]
[12,1,"12\" x 18\" Handicap Parking, mounts on U-channel and handling",null,{"v":0,"d":"$0.00"}]
[13,1,"12\" x 18\" Delivery Entrance, mounts on U-channel and handling",null,{"v":0,"d":"$0.00"}]
[14,1,"12\" x 18\" Student  Pick up and Drop off ---->, mounts on U-channel and handling",null,{"v":0,"d":"$0.00"}]
[15,1,"12\" x 18\" Student Pick up and Drop off <----, mounts on U-channel and handling       ",null,{"v":0,"d":"$0.00"}]
[16,85,"12\" x 18\" No Trespassing Video Surveillance, on U-channel and handling",null,{"v":0,"d":"$0.00"}]
[17,1,"12\" x 18\" Student Parking by Permit Only, mounts on U-channel and handling",null,{"v":0,"d":"$0.00"}]
[18,2,"12\" x 18\" Student Parking Permit Only, mounts on U-channel and handling",null,{"v":0,"d":"$0.00"}]
[19,6,"12\" x 18\" Van Accessible, mounted to U-channel and handling",null,{"v":0,"d":"$0.00"}]
[20,39,"10\" x 10\" Di-bond numbers mounted on brick and handling",null,{"v":0,"d":"$0.00"}]
[21,127,"8' U-channel galvanized post and handling",null,{"v":0,"d":"$0.00"}]
[22,127,"Hardware and handling",null,{"v":0,"d":"$0.00"}]
[23,10,"Pedestrian Cross Walk and handling",null,{"v":0,"d":"$0.00"}]
["24",1,"Labor for Installation",null,{"v":0,"d":"$0.00"}]
[{"$nulls":3},"TOTAL (Lot 1)",{"$f":"SUM(E8:E31)","v":{"v":0,"d":"$0.00"}}]
[]
["All bidders are to electronically complete the Bidding Schedule and return the excel spreadsheet with their bid response."]
["Insert unit prices in column D. Calculations will be performed with formulas provided in the Worksheet."]

{"sheet":"Lot 2 - LWE","index":1,"n_rows":31,"n_cols":8,"rows_kept":31,"merged":[[5,5,5,7],[29,0,29,4],[30,0,30,4]]}
[null,null,"Horry County Schools"]
[null,null,"Attachment A: Solicitation 2324-16VS"]
[null,null,"Name of Offeror as identified on the cover page:"]
[]
[null,null,"(Full legal name of business submitting the offer)"]
[{"$nulls":5},"QUESTION:    Optional Response, see page 5 of this solicitation."]
["Item#","Qty","Description","Unit Price","Extended Price","Are you requesting the SC Resident Vendor preference? Y/N","Are you requesting the SC End Product preference? Y/N","Are you requesting the US End Product preference? Y/N"]
[1,1,"2' x 8' Main Entrance sign with 1/2 white PVC letters and handling - Brown w/ while letters",null,{"$f":"+B8*D8","v":{"v":0,"d":"$0.00"}}]
[2,4,"2' x 3' Notice No Trespassing, mounts on        U-channel and handling",null,{"$f":"+B9*D9","v":{"v":0,"d":"$0.00"}}]
[3,1,"24\" x 24\" Do Not Enter, mounts on U-channel and handling",null,{"v":0,"d":"$0.00"}]
[4,4,"18 x 24 Tobacco Free signs, mounts on              U-channel and handling",null,{"v":0,"d":"$0.00"}]
[5,1,"18\" x 18\" Deliveries, mounts on U-channel and handling",null,{"v":0,"d":"$0.00"}]
[6,1,"18\" x 18\" Main Entrance sign, mounts on brick and handling",null,{"v":0,"d":"$0.00"}]
[7,4,"18\" x 18\" Visitor Check-In sign, mounts on brick and handling",null,{"v":0,"d":"$0.00"}]
[8,1,"12\" x 18\" Faculty &  Staff Parking <----, mounts on U-channel and handling",null,{"v":0,"d":"$0.00"}]
[9,2,"12\" x 18\" Faculty & Staff Parking Only, mounts on u-channel and handling",null,{"v":0,"d":"$0.00"}]
[10,1,"12\" x 18\" Faculty, Staff and Visitor Parking Only, mounts on U-channel and handling",null,{"v":0,"d":"$0.00"}]
[11,4,"12\" x 18\" Handicap Parking, mounts on u-channel and handling",null,{"v":0,"d":"$0.00"}]
[12,6,"12\" x 18\" Student Pick up and Drop Off, mounts on U-channel and handling",null,{"v":0,"d":"$0.00"}]
[13,6,"12\" x 18\" Visitor Parking with up arrow, mounts on U-channel and handling",null,{"v":0,"d":"$0.00"}]
[14,56,"12\" x 18\" No Trespassing Video Surveillance, mounts on U­-channel and handling",null,{"v":0,"d":"$0.00"}]
[15,2,"12\" x 18\" Van Accessible, mounts on U-channel and handling",null,{"v":0,"d":"$0.00"}]
[16,88,"8' U-channel galvanized post and handling ",null,{"v":0,"d":"$0.00"}]
[17,88,"Hardware and handling",null,{"v":0,"d":"$0.00"}]
[18,3,"Pedestrian Cross Walk and handling",null,{"v":0,"d":"$0.00"}]
[19,56,"10\" x 10\" Di-bond numbers mounted on brick and handling",null,{"v":0,"d":"$0.00"}]
[20,1,"Labor for Installation",null,{"v":0,"d":"$0.00"}]
[{"$nulls":3},"TOTAL (Lot 2)",{"$f":"SUM(E8:E27)","v":{"v":0,"d":"$0.00"}}]
[]
["All bidders are to electronically complete the Bidding Schedule and return the excel spreadsheet with their bid response."]
["Insert unit prices in column D. Calculations will be performed with formulas provided in the Worksheet."]

{"sheet":"Lot 3 - SSE","index":2,"n_rows":28,"n_cols":8,"rows_kept":28,"merged":[[5,5,5,7],[26,0,26,4],[27,0,27,4]]}
[null,null,"Horry County Schools"]
[null,null,"Attachment A: Solicitation 2324-16VS"]
[null,null,"Name of Offeror as identified on the cover page:"]
[]
[null,null,"(Full legal name of business submitting the offer)"]
[{"$nulls":5},"QUESTION:    Optional Response, see page 5 of this solicitation."]
["Item#","Qty","Description","Unit Price","Extended Price","Are you requesting the SC Resident Vendor preference? Y/N","Are you requesting the SC End Product preference? Y/N","Are you requesting the US End Product preference? Y/N"]
[1,1,"2' x 8' Main Entrance sign with 1/2 white PVC Letters and handling-Green w/ White Letters",null,{"$f":"+B8*D8","v":{"v":0,"d":"$0.00"}}]
[2,1,"2'· x 3' Notice No Trespassing mounts on U-channel and handling",null,{"$f":"+B9*D9","v":{"v":0,"d":"$0.00"}}]
[3,1,"18 x 24 Tobacco Free signs, mounts on U-channel and handling ",null,{"v":0,"d":"$0.00"}]
[4,1,"18\" x 18\" Main Entrance sign, mounts on brick and handling- Teal w/ White Letters",null,{"v":0,"d":"$0.00"}]
[5,1,"18\" x 1 8\" Visitor Check-In sign mounts on brick and handling ",null,{"v":0,"d":"$0.00"}]
[6,1,"18\" x 18\"  Deliveries ---->, mounts on brick and handling",null,{"v":0,"d":"$0.00"}]
[7,1,"12\" x 18\" Faculty Staff and Visitor Parking Only on U-channel and handling",null,{"v":0,"d":"$0.00"}]
[8,1,"12\" x 18\" Faculty Staff and Visitor Parking  Only <----, mounts on U-channel and handling ",null,{"v":0,"d":"$0.00"}]
[9,3,"12\" x 18\" Faculty Staff Parking Only with up arrow on U-channel",null,{"v":0,"d":"$0.00"}]
[10,3,"12\" x 18\" Student Pick Up and Drop Off with up arrow, mounts on U-channel and handling",null,{"v":0,"d":"$0.00"}]
[11,7,"12\" x 18\" Visitor Parking with up arrow, mounts on U-channel and handling",null,{"v":0,"d":"$0.00"}]
[12,40,"12\" x 18\" No Trespassing Video Surveillance mounts on U- channel and handling",null,{"v":0,"d":"$0.00"}]
[13,29,"10\" x 10\" Di-bond numbers mounted on brick and handling",null,{"v":0,"d":"$0.00"}]
[14,58,"8' U-channel galvanized post and handling",null,{"v":0,"d":"$0.00"}]
[15,58,"Hardware and handling ",null,{"v":0,"d":"$0.00"}]
[16,1,"Pedestrian Cross Walk and handling ",null,{"v":0,"d":"$0.00"}]
[17,1,"Labor for Installation",null,{"v":0,"d":"$0.00"}]
[{"$nulls":3},"TOTAL (Lot 3)",{"$f":"SUM(E8:E24)","v":{"v":0,"d":"$0.00"}}]
[]
["All bidders are to electronically complete the Bidding Schedule and return the excel spreadsheet with their bid response."]
["Insert unit prices in column D. Calculations will be performed with formulas provided in the Worksheet."]